lending/lending_fUSD_20240807
["ID","MTS","AMOUNT","RATE_DAILY","PERIOD"]
[334383799,1723017041858,-3289.0,0.00011,2]
[334383800,1723017041867,-150.0,0.00011,2]
[334383801,1723017041877,-9113.209,0.00011,2]
[334383802,1723017041891,-5838.0,0.00011,2]
[334383803,1723017041902,-1671.0,0.00011,2]
[334383804,1723017041912,-150.0,0.00011,2]
[334383805,1723017041921,-5130.0,0.00011,2]
[334383806,1723017041933,-1204.0,0.00011,2]
[334383807,1723017041943,-366888.15830181,0.00011,2]
[334383808,1723017041955,-20000.0,0.00011,2]
[334383809,1723017041968,-338.805,0.00011,2]
[334383810,1723017041980,-610.37628032,0.00011,2]
[334383811,1723017041993,-1358.27907488,0.00011,2]
[334383824,1723017043005,-3484.0,0.0001089,2]
[334383837,1723017043061,-8243.05082751,0.0001089,2]
[334383840,1723017043072,-1417.58,0.00010999,2]
[334383842,1723017043082,-1417.58,0.00010999,2]
[334383844,1723017043091,-1417.58,0.00010999,2]
[334383846,1723017043101,-1417.58,0.00010999,2]
[334383849,1723017043113,-1417.58,0.00010999,2]
[334383852,1723017043124,-1417.58,0.00010999,2]
[334383855,1723017043133,-1417.81195562,0.00010999,2]
[334383858,1723017043142,-150.0,0.00011,2]
[334383860,1723017043152,-150.0,0.00011,2]
[334383862,1723017043171,-1075.0,0.00011,2]
[334383863,1723017043181,-1564.84652265,0.00011,2]
[334383864,1723017043192,-97313.31434675,0.00011,2]
[334383865,1723017043202,-11209.15747998,0.00011,2]
[334383866,1723017043217,-711.87870595,0.00011,2]
[334383867,1723017043227,-367.70690562,0.00011,2]
[334383868,1723017043238,-942.66174752,0.00011,2]
[334383869,1723017043251,-880.8,0.00011,2]
[334383870,1723017043263,-938.72103182,0.00011,2]
[334383871,1723017043274,-20481.6,0.00011,2]
[334383872,1723017043285,-73325.23097673,0.00011,2]
[334383873,1723017043309,-10176.16600853,0.00011,2]
[334383874,1723017043321,-745.8867187,0.00011,2]
[334383875,1723017043332,-70218.33833784,0.00011,2]
[334384142,1723017046226,-77184.73890349,0.00011,2]
[334384143,1723017046236,-163.50579886,0.00011,2]
[334384145,1723017046246,-51297.71110353,0.00011,2]
[334384147,1723017046258,-1378.80283563,0.00011,2]
[334384149,1723017046270,-2947.54898619,0.00011,2]
[334384151,1723017046285,-3063.31053378,0.00011,2]
[334384156,1723017046338,-263.85745533,0.00011,2]
[334384158,1723017046350,-606.13570382,0.00011,2]
[334384160,1723017046362,-147877.96201166,0.00011,2]
[334384162,1723017046373,-1588.49915477,0.00011,2]
[334384165,1723017046392,-873.80203649,0.00011,2]
[334385431,1723017059939,-218191.33993846,0.00011,2]
[334385433,1723017059948,-210.0,0.00011,2]
[334385435,1723017059957,-210.0,0.00011,2]
[334385437,1723017059966,-210.0,0.00011,2]
[334385439,1723017059975,-210.0,0.00011,2]
[334385441,1723017059986,-210.0,0.00011,2]
[334385443,1723017059995,-210.0,0.00011,2]
[334385444,1723017060005,-210.0,0.00011,2]
[334385445,1723017060015,-210.0,0.00011,2]
[334385446,1723017060024,-210.0,0.00011,2]
[334385447,1723017060033,-210.0,0.00011,2]
[334385448,1723017060044,-210.0,0.00011,2]
[334385450,1723017060054,-210.0,0.00011,2]
[334385452,1723017060063,-210.0,0.00011,2]
[334385454,1723017060072,-210.0,0.00011,2]
[334385456,1723017060081,-1390511.42440908,0.00011,2]
[334385458,1723017060091,-865.63064836,0.00011,2]
[334385460,1723017060101,-1158.0,0.00011,2]
[334385462,1723017060111,-5535843.99678833,0.00011,2]
[334385464,1723017060124,-2012535.2433313,0.00011,2]
[334385466,1723017060134,-207.0,0.00011,2]
[334385468,1723017060143,-201.0,0.00011,2]
[334385470,1723017060153,-201.0,0.00011,2]
[334385472,1723017060163,-250.0,0.00011,2]
[334385474,1723017060173,-2000.0,0.00011,2]
[334385476,1723017060183,-2000.0,0.00011,2]
[334385478,1723017060193,-222.0,0.00011,2]
[334385480,1723017060203,-735.31359865,0.00011,2]
[334385482,1723017060213,-8500.0,0.00011,2]
[334385484,1723017060223,-2000.0,0.00011,2]
[334385486,1723017060232,-8500.0,0.00011,2]
[334385488,1723017060244,-12081074.25248278,0.00011,2]
[334385490,1723017060253,-1850130.09620897,0.00011,2]
[334385492,1723017060263,-7969.20655511,0.00011,2]
[334385494,1723017060272,-181.75852113,0.00011,2]
[334385496,1723017060282,-1050.25607038,0.00011,2]
[334385498,1723017060291,-169.213665,0.00011,2]
[334385500,1723017060302,-169.213665,0.00011,2]
[334385502,1723017060312,-412.97957434,0.00011,2]
[334385504,1723017060322,-155.0,0.00011,2]
[334385505,1723017060331,-449.38282127,0.00011,2]
[334385507,1723017060341,-170.43469918,0.00011,2]
[334385509,1723017060351,-312.21614804,0.00011,2]
[334385511,1723017060360,-200.0,0.00011,2]
[334385513,1723017060369,-353.42998201,0.00011,2]
[334385515,1723017060379,-838.522,0.00011,2]
[334385517,1723017060388,-301.748,0.00011,2]
[334385519,1723017060397,-3000.0,0.00011,2]
[334385521,1723017060406,-206.0,0.00011,2]
[334385523,1723017060418,-206.0,0.00011,2]
[334385525,1723017060428,-206.0,0.00011,2]
[334385527,1723017060440,-206.0,0.00011,2]
[334385529,1723017060452,-206.0,0.00011,2]
[334385531,1723017060462,-206.0,0.00011,2]
[334385533,1723017060472,-206.0,0.00011,2]
[334385535,1723017060482,-206.0,0.00011,2]
[334385537,1723017060496,-206.0,0.00011,2]
[334385539,1723017060506,-206.0,0.00011,2]
[334385541,1723017060515,-206.0,0.00011,2]
[334385543,1723017060524,-206.0,0.00011,2]
[334385545,1723017060534,-206.0,0.00011,2]
[334385547,1723017060543,-206.0,0.00011,2]
[334385549,1723017060552,-206.0,0.00011,2]
[334385551,1723017060562,-200.0,0.00011,2]
[334385553,1723017060572,-200.0,0.00011,2]
[334385555,1723017060582,-200.0,0.00011,2]
[334385557,1723017060592,-200.0,0.00011,2]
[334385559,1723017060601,-200.0,0.00011,2]
[334385561,1723017060612,-200.0,0.00011,2]
[334385563,1723017060622,-200.0,0.00011,2]
[334385565,1723017060632,-200.0,0.00011,2]
[334385567,1723017060642,-200.0,0.00011,2]
[334385569,1723017060653,-200.0,0.00011,2]
[334385571,1723017060662,-8500.0,0.00011,2]
[334385573,1723017060671,-215.0,0.00011,2]
[334385575,1723017060681,-215.0,0.00011,2]
[334385577,1723017060690,-215.0,0.00011,2]
[334385579,1723017060701,-215.0,0.00011,2]
[334385580,1723017060710,-215.0,0.00011,2]
[334385582,1723017060719,-215.0,0.00011,2]
[334385584,1723017060729,-215.0,0.00011,2]
[334385586,1723017060739,-215.0,0.00011,2]
[334385588,1723017060748,-215.0,0.00011,2]
[334385590,1723017060757,-215.0,0.00011,2]
[334385592,1723017060766,-215.0,0.00011,2]
[334385594,1723017060775,-150.0,0.00011014,2]
[334385596,1723017060784,-150.0,0.00011014,2]
[334385597,1723017060793,-150.0,0.00011014,2]
[334385599,1723017060802,-150.0,0.00011014,2]
[334385601,1723017060811,-150.0,0.00011014,2]
[334385603,1723017060820,-150.0,0.00011014,2]
[334385605,1723017060829,-150.0,0.00011014,2]
[334385607,1723017060839,-150.0,0.00011014,2]
[334385609,1723017060848,-154395.0,0.00011014,2]
[334385611,1723017060858,-302859.0,0.00011014,2]
[334385613,1723017060867,-151.0,0.00011014,2]
[334385615,1723017060876,-169.213665,0.00011014,2]
[334385617,1723017060885,-151.0,0.00011014,2]
[334385619,1723017060894,-169.213665,0.00011014,2]
[334385621,1723017060909,-151.0,0.00011014,2]
[334385623,1723017060919,-151.0,0.00011014,2]
[334385625,1723017060928,-160.65095864,0.00011033,2]
[334385626,1723017060938,-250.68901058,0.00011037,2]
[334385627,1723017060948,-1176.3199048,0.00011037,2]
[334385628,1723017060958,-376.0427426,0.00011085,2]
[334385629,1723017060967,-994.4,0.000111,2]
[334385630,1723017060977,-2000.0,0.000111,2]
[334385631,1723017060990,-29374.5937742,0.00011103,2]
[334385632,1723017061002,-201115.2276631,0.00011103,2]
[334385633,1723017061011,-4748.273742,0.00011103,2]
[334385634,1723017061021,-15475.39970181,0.00011105,2]
[334385635,1723017061031,-11009.2781174,0.00011105,2]
[334385636,1723017061040,-10529.194286,0.00011105,2]
[334385637,1723017061053,-5441.17939617,0.00011105,2]
[334385638,1723017061063,-3977.76480579,0.00011105,2]
[334385639,1723017061072,-5401.11645721,0.00011105,2]
[334385640,1723017061083,-3402.64786187,0.00011105,2]
[334385641,1723017061092,-270.43561965,0.00011105,2]
[334385642,1723017061102,-3119.38384377,0.00011105,2]
[334385643,1723017061111,-3080.64330084,0.00011105,2]
[334385644,1723017061122,-2144.87452689,0.00011105,2]
[334385645,1723017061131,-719.61665887,0.00011105,2]
[334385646,1723017061140,-2340.81787012,0.00011105,2]
[334385647,1723017061150,-1138.52210003,0.00011105,2]
[334385648,1723017061159,-155.0,0.00011105,2]
[334385649,1723017061168,-1184.40654444,0.00011105,2]
[334385650,1723017061178,-1297.62235699,0.00011105,2]
[334385651,1723017061187,-921.08584336,0.00011105,2]
[334385652,1723017061205,-686.66832223,0.00011105,2]
[334385653,1723017061214,-1274.96047504,0.00011105,2]
[334385654,1723017061224,-1074.12957374,0.00011105,2]
[334385655,1723017061233,-1500.0,0.00011105,2]
[334385656,1723017061249,-962.05777987,0.00011105,2]
[334385658,1723017061259,-594.76876135,0.00011105,2]
[334385660,1723017061268,-723.05727297,0.00011105,2]
[334385662,1723017061277,-298.50152661,0.00011105,2]
[334385664,1723017061286,-400.0,0.00011105,2]
[334385666,1723017061295,-519.87373772,0.00011105,2]
[334385667,1723017061307,-155.0,0.00011105,2]
[334385669,1723017061316,-155.0,0.00011105,2]
[334385671,1723017061326,-600.45534575,0.00011105,2]
[334385673,1723017061335,-493.36886107,0.00011105,2]
[334385675,1723017061344,-155.0,0.00011105,2]
[334385677,1723017061354,-649.54016177,0.00011105,2]
[334385679,1723017061363,-158.92312408,0.00011105,2]
[334385681,1723017061372,-628.32182631,0.00011105,2]
[334385683,1723017061381,-197.03073788,0.00011105,2]
[334385685,1723017061391,-297.33720666,0.00011105,2]
[334385686,1723017061400,-155.0,0.00011105,2]
[334385688,1723017061409,-236.22265228,0.00011105,2]
[334385690,1723017061419,-155.0,0.00011105,2]
[334385692,1723017061428,-202.79589338,0.00011105,2]
[334385694,1723017061438,-155.0,0.00011105,2]
[334385696,1723017061448,-155.0,0.00011105,2]
[334385698,1723017061458,-205.84081524,0.00011105,2]
[334385700,1723017061468,-155.0,0.00011105,2]
[334385702,1723017061477,-155.0,0.00011105,2]
[334385704,1723017061490,-367.68673984,0.00011105,2]
[334385706,1723017061500,-155.0,0.00011105,2]
[334385708,1723017061509,-1973.41411613,0.00011105,2]
[334385710,1723017061519,-309.13195594,0.00011105,2]
[334385712,1723017061528,-454.36595222,0.00011105,2]
[334385714,1723017061537,-155.0,0.00011105,2]
[334385716,1723017061547,-155.16089872,0.00011105,2]
[334385717,1723017061556,-155.0,0.00011105,2]
[334385719,1723017061565,-164.3205544,0.00011105,2]
[334385721,1723017061575,-210.95829151,0.00011105,2]
[334385723,1723017061584,-532.00654978,0.00011105,2]
[334385725,1723017061594,-313.56779303,0.00011105,2]
[334385727,1723017061604,-653.31483393,0.00011105,2]
[334385729,1723017061614,-484.95345974,0.00011105,2]
[334385731,1723017061623,-203.31285959,0.00011105,2]
[334385733,1723017061633,-155.0,0.00011105,2]
[334385735,1723017061643,-155.0,0.00011105,2]
[334385737,1723017061653,-303.95332576,0.00011105,2]
[334385739,1723017061663,-363.99654651,0.00011105,2]
[334385741,1723017061672,-206.66942035,0.00011105,2]
[334385743,1723017061682,-528.6753844,0.00011105,2]
[334385745,1723017061692,-165.42755717,0.00011105,2]
[334385747,1723017061702,-155.0,0.00011105,2]
[334385749,1723017061711,-218.80676447,0.00011105,2]
[334385751,1723017061721,-155.0,0.00011105,2]
[334385752,1723017061731,-155.0,0.00011105,2]
[334385754,1723017061749,-476.70905389,0.00011105,2]
[334385756,1723017061758,-439.86607243,0.00011105,2]
[334385758,1723017061767,-155.0,0.00011105,2]
[334385760,1723017061776,-265.31216266,0.00011105,2]
[334385762,1723017061786,-155.67714629,0.00011105,2]
[334385764,1723017061795,-159.52802673,0.00011105,2]
[334385766,1723017061804,-155.0,0.00011105,2]
[334385768,1723017061813,-164.30370946,0.00011105,2]
[334385770,1723017061822,-328.08103898,0.00011105,2]
[334385772,1723017061831,-380.14796081,0.00011105,2]
[334385773,1723017061840,-357.27329428,0.00011105,2]
[334385775,1723017061849,-155.0,0.00011105,2]
[334385777,1723017061859,-155.0,0.00011105,2]
[334385779,1723017061868,-330.04532023,0.00011105,2]
[334385782,1723017061879,-155.36263632,0.00011105,2]
[334385784,1723017061890,-347.5045085,0.00011105,2]
[334385786,1723017061901,-161.3917869,0.00011105,2]
[334385788,1723017061912,-532.99941591,0.00011105,2]
[334385790,1723017061923,-366.14561852,0.00011105,2]
[334385792,1723017061934,-522.01983607,0.00011105,2]
[334385794,1723017061945,-175.45655511,0.00011105,2]
[334385796,1723017061955,-155.0,0.00011105,2]
[334385798,1723017061966,-200.0,0.00011105,2]
[334385800,1723017061976,-2839.69302548,0.00011105,2]
[334385802,1723017061985,-155.25093631,0.00011105,2]
[334385804,1723017061999,-160.35411445,0.00011105,2]
[334385806,1723017062009,-243.133158,0.00011105,2]
[334385808,1723017062020,-7000.0,0.00011105,2]
[334385811,1723017062032,-155.0,0.00011105,2]
[334385813,1723017062047,-158.88097768,0.00011105,2]
[334385815,1723017062058,-194.9143334,0.00011105,2]
[334385817,1723017062068,-206.30419104,0.00011105,2]
[334385819,1723017062079,-198.46158582,0.00011105,2]
[334385821,1723017062090,-155.15374331,0.00011105,2]
[334385823,1723017062100,-203.76794845,0.00011105,2]
[334385825,1723017062111,-207.36545677,0.00011105,2]
[334385827,1723017062123,-155.0,0.00011105,2]
[334385829,1723017062135,-10472.41250402,0.00011105,2]
[334385831,1723017062145,-155.0,0.00011105,2]
[334385833,1723017062155,-192.0111529,0.00011105,2]
[334385835,1723017062166,-271.56491431,0.00011105,2]
[334385837,1723017062177,-155.29218886,0.00011105,2]
[334385839,1723017062186,-240.82333061,0.00011105,2]
[334385840,1723017062194,-155.0,0.00011105,2]
[334385842,1723017062203,-263.66394453,0.00011105,2]
[334385844,1723017062211,-1725.0,0.00011105,2]
[334385846,1723017062221,-155.0,0.00011105,2]
[334385848,1723017062231,-186.5829073,0.00011105,2]
[334385850,1723017062244,-170.16453453,0.00011105,2]
[334385852,1723017062254,-155.0,0.00011105,2]
[334385854,1723017062264,-218.69396992,0.00011105,2]
[334385856,1723017062274,-155.0,0.00011105,2]
[334385858,1723017062285,-200.0772997,0.00011105,2]
[334385860,1723017062297,-160.47891695,0.00011105,2]
[334385862,1723017062309,-166.45993919,0.00011105,2]
[334385865,1723017062320,-155.0,0.00011105,2]
[334385867,1723017062333,-295.88149592,0.00011105,2]
[334385869,1723017062345,-155.0,0.00011105,2]
[334385871,1723017062355,-274.74497196,0.00011105,2]
[334385873,1723017062365,-155.0,0.00011105,2]
[334385875,1723017062376,-202.71940011,0.00011105,2]
[334385877,1723017062386,-155.21050442,0.00011105,2]
[334385879,1723017062395,-155.0,0.00011105,2]
[334385881,1723017062405,-264.02950619,0.00011105,2]
[334385883,1723017062415,-1370.91176247,0.00011105,2]
[334385885,1723017062425,-155.29588602,0.00011105,2]
[334385887,1723017062437,-401.16988804,0.00011105,2]
[334385889,1723017062447,-255.09228319,0.00011105,2]
[334385891,1723017062457,-155.0,0.00011105,2]
[334385894,1723017062468,-155.0,0.00011105,2]
[334385896,1723017062478,-404.83132537,0.00011105,2]
[334385898,1723017062490,-1051.0181524,0.00011105,2]
[334385900,1723017062501,-155.0,0.00011105,2]
[334385902,1723017062512,-2262.85941922,0.00011105,2]
[334385904,1723017062522,-155.14776328,0.00011105,2]
[334385906,1723017062532,-236.89983935,0.00011105,2]
[334385908,1723017062543,-155.15237423,0.00011105,2]
[334385911,1723017062554,-221.22694856,0.00011105,2]
[334385913,1723017062565,-201.71555854,0.00011105,2]
[334385915,1723017062576,-4792.31237753,0.00011105,2]
[334385917,1723017062587,-249.07462617,0.00011105,2]
[334385919,1723017062598,-155.0,0.00011105,2]
[334385921,1723017062609,-298.91848984,0.00011105,2]
[334385924,1723017062621,-294.87537462,0.00011105,2]
[334385926,1723017062631,-155.32906891,0.00011105,2]
[334385928,1723017062641,-219.31276119,0.00011105,2]
[334385930,1723017062650,-155.0,0.00011105,2]
[334385932,1723017062664,-207.73368938,0.00011105,2]
[334385934,1723017062673,-155.17358563,0.00011105,2]
[334385936,1723017062683,-169.57115366,0.00011105,2]
[334385938,1723017062693,-155.0,0.00011105,2]
[334385940,1723017062703,-155.0,0.00011105,2]
[334385942,1723017062713,-203.37380068,0.00011105,2]
[334385944,1723017062723,-155.0,0.00011105,2]
[334385947,1723017062734,-309.56202212,0.00011105,2]
[334385949,1723017062746,-160.13111868,0.00011105,2]
[334385951,1723017062757,-155.0,0.00011105,2]
[334385953,1723017062768,-155.10641652,0.00011105,2]
[334385955,1723017062778,-224.5140643,0.00011105,2]
[334385957,1723017062788,-1256.92584908,0.00011105,2]
[334385959,1723017062800,-191.48055914,0.00011105,2]
[334385962,1723017062810,-162.18737383,0.00011105,2]
[334385964,1723017062822,-200.54040896,0.00011105,2]
[334385966,1723017062832,-151.0,0.00011105,2]
[334385968,1723017062843,-151.0,0.00011105,2]
[334385970,1723017062852,-151.0,0.00011105,2]
[334385972,1723017062862,-151.0,0.00011105,2]
[334385974,1723017062872,-155.05067587,0.00011105,2]
[334385976,1723017062882,-237.309031,0.00011105,2]
[334385978,1723017062892,-200.76237544,0.00011105,2]
[334385980,1723017062902,-155.0,0.00011105,2]
[334385982,1723017062913,-237.309031,0.00011105,2]
[334385984,1723017062923,-155.0,0.00011105,2]
[334385986,1723017062933,-151.0,0.00011105,2]
[334385989,1723017062943,-151.0,0.00011105,2]
[334385991,1723017062954,-155.00000009,0.00011105,2]
[334385993,1723017062964,-151.0,0.00011105,2]
[334385995,1723017062974,-1050.3006757,0.00011105,2]
[334385997,1723017062985,-151.169615,0.00011105,2]
[334385999,1723017062996,-151.0,0.00011105,2]
[334386001,1723017063006,-155.0,0.00011105,2]
[334386003,1723017063016,-151.0,0.00011105,2]
[334386005,1723017063026,-151.0,0.00011105,2]
[334386007,1723017063036,-160.520491,0.00011105,2]
[334386009,1723017063049,-157.13774635,0.00011105,2]
[334386010,1723017063059,-151.0,0.00011105,2]
[334386012,1723017063069,-151.0,0.00011105,2]
[334386014,1723017063079,-615.166548,0.00011105,2]
[334386016,1723017063089,-151.0,0.00011105,2]
[334386018,1723017063098,-615.166548,0.00011105,2]
[334386020,1723017063108,-151.0,0.00011105,2]
[334386022,1723017063118,-151.228273,0.00011105,2]
[334386024,1723017063129,-151.0,0.00011105,2]
[334386026,1723017063140,-191.467165,0.00011105,2]
[334386028,1723017063149,-191.467165,0.00011105,2]
[334386030,1723017063159,-151.0,0.00011105,2]
[334386032,1723017063169,-151.0,0.00011105,2]
[334386034,1723017063179,-151.0,0.00011105,2]
[334386036,1723017063189,-312.650074,0.00011105,2]
[334386038,1723017063199,-151.0,0.00011105,2]
[334386040,1723017063209,-312.650074,0.00011105,2]
[334386042,1723017063220,-155.0,0.00011105,2]
[334386044,1723017063229,-155.0,0.00011105,2]
[334386046,1723017063238,-1182.528005,0.00011105,2]
[334386048,1723017063249,-1182.528005,0.00011105,2]
[334386049,1723017063259,-160.26358397,0.00011105,2]
[334386050,1723017063269,-151.0,0.00011105,2]
[334386051,1723017063279,-287.11577091,0.00011105,2]
[334386052,1723017063289,-237.909342,0.00011105,2]
[334386053,1723017063299,-155.0,0.00011105,2]
[334386054,1723017063310,-237.909342,0.00011105,2]
[334386055,1723017063320,-156.85881808,0.00011105,2]
[334386056,1723017063330,-151.0,0.00011105,2]
[334386057,1723017063341,-717.252775,0.00011105,2]
[334386058,1723017063351,-717.252775,0.00011105,2]
[334386059,1723017063362,-155.0,0.00011105,2]
[334386060,1723017063374,-151.0,0.00011105,2]
[334386061,1723017063385,-151.0,0.00011105,2]
[334386062,1723017063396,-206.57217609,0.00011105,2]
[334386063,1723017063406,-155.191516,0.00011105,2]
[334386064,1723017063416,-155.67856311,0.00011105,2]
[334386065,1723017063426,-155.191516,0.00011105,2]
[334386066,1723017063437,-151.0,0.00011105,2]
[334386067,1723017063448,-163.556532,0.00011105,2]
[334386068,1723017063458,-151.0,0.00011105,2]
[334386069,1723017063468,-163.556532,0.00011105,2]
[334386070,1723017063478,-189.28913136,0.00011105,2]
[334386071,1723017063488,-155.21485505,0.00011105,2]
[334386072,1723017063499,-208.456682,0.00011105,2]
[334386073,1723017063509,-208.456682,0.00011105,2]
[334386074,1723017063519,-163.75868974,0.00011105,2]
[334386075,1723017063529,-166.43435475,0.00011105,2]
[334386076,1723017063539,-159.37462377,0.00011105,2]
[334386077,1723017063550,-151.0,0.00011105,2]
[334386078,1723017063560,-151.0,0.00011105,2]
[334386079,1723017063570,-151.0,0.00011105,2]
[334386080,1723017063580,-151.0,0.00011105,2]
[334386081,1723017063590,-151.0,0.00011105,2]
[334386082,1723017063600,-151.0,0.00011105,2]
[334386083,1723017063610,-151.0,0.00011105,2]
[334386084,1723017063620,-217.757394,0.00011105,2]
[334386085,1723017063630,-265.011121,0.00011105,2]
[334386086,1723017063640,-217.757394,0.00011105,2]
[334386087,1723017063650,-265.011121,0.00011105,2]
[334386088,1723017063660,-155.18742705,0.00011105,2]
[334386089,1723017063670,-151.11534,0.00011105,2]
[334386090,1723017063680,-159.54968604,0.00011105,2]
[334386091,1723017063691,-151.0,0.00011105,2]
[334386092,1723017063701,-7574.052548,0.00011105,2]
[334386093,1723017063712,-151.0,0.00011105,2]
[334386094,1723017063721,-7574.052548,0.00011105,2]
[334386095,1723017063732,-151.0,0.00011105,2]
[334386096,1723017063745,-151.0,0.00011105,2]
[334386097,1723017063755,-202.72168227,0.00011105,2]
[334386098,1723017063764,-151.0,0.00011105,2]
[334386099,1723017063774,-468.941469,0.00011105,2]
[334386100,1723017063784,-213.101698,0.00011105,2]
[334386101,1723017063794,-151.0,0.00011105,2]
[334386102,1723017063804,-468.941469,0.00011105,2]
[334386103,1723017063814,-151.0,0.00011105,2]
[334386104,1723017063823,-217.795814,0.00011105,2]
[334386105,1723017063833,-151.244242,0.00011105,2]
[334386106,1723017063843,-151.294273,0.00011105,2]
[334386107,1723017063853,-151.0,0.00011105,2]
[334386108,1723017063863,-155.97880612,0.00011105,2]
[334386109,1723017063873,-151.063253,0.00011105,2]
[334386110,1723017063883,-188.169251,0.00011105,2]
[334386111,1723017063893,-151.0,0.00011105,2]
[334386112,1723017063902,-159.190631,0.00011105,2]
[334386113,1723017063912,-159.190631,0.00011105,2]
[334386114,1723017063922,-151.0,0.00011105,2]
[334386115,1723017063933,-155.0,0.00011105,2]
[334386116,1723017063943,-151.0,0.00011105,2]
[334386117,1723017063954,-151.0,0.00011105,2]
[334386118,1723017063964,-200.0,0.0001111,2]
[334386119,1723017063975,-150.0,0.0001116,2]
[334386120,1723017063985,-31294.58769098,0.00011186,2]
[334386124,1723017064277,-2720.58957357,0.00011186,2]
[334386125,1723017064289,-3013.05758652,0.00011186,2]
[334386126,1723017064303,-837.1615839,0.00011186,2]
[334386127,1723017064318,-267.22567297,0.00011186,2]
[334386128,1723017064336,-6122.78164,0.00011186,2]
[334386129,1723017064349,-12406.6050078,0.00011186,2]
[334386130,1723017064361,-25310.66391755,0.00011186,2]
[334386131,1723017064371,-42725.26808863,0.00011186,2]
[334386132,1723017064382,-29513.37978201,0.00011186,2]
[334386133,1723017064393,-155.0,0.00011186,2]
[334386134,1723017064404,-151.0,0.00011186,2]
[334386135,1723017064415,-151.0,0.00011186,2]
[334386136,1723017064426,-151.431131,0.00011186,2]
[334386137,1723017064437,-291.67022,0.00011186,2]
[334386138,1723017064449,-151.0,0.00011186,2]
[334386139,1723017064460,-153.022774,0.00011186,2]
[334386140,1723017064470,-151.0,0.00011186,2]
[334386141,1723017064480,-151.250549,0.00011186,2]
[334386142,1723017064494,-301.379654,0.00011186,2]
[334386143,1723017064506,-240.056998,0.00011186,2]
[334386144,1723017064518,-151.0,0.00011186,2]
[334386145,1723017064528,-151.0,0.00011186,2]
[334386146,1723017064539,-151.0,0.00011186,2]
[334386147,1723017065053,-151.0,0.00011186,2]
[334386148,1723017065094,-151.0,0.00011186,2]
[334386149,1723017065121,-151.0,0.00011186,2]
[334386150,1723017065140,-151.0,0.00011186,2]
[334386151,1723017065150,-151.0,0.00011186,2]
[334386152,1723017065160,-151.0,0.00011186,2]
[334386153,1723017065169,-151.0,0.00011186,2]
[334386154,1723017065178,-151.0,0.00011186,2]
[334386155,1723017065188,-151.0,0.00011186,2]
[334386156,1723017065197,-475.424067,0.00011186,2]
[334386157,1723017065207,-475.424067,0.00011186,2]
[334386158,1723017065216,-151.0,0.00011186,2]
[334386159,1723017065225,-151.0,0.00011186,2]
[334386160,1723017065235,-532.371899,0.00011186,2]
[334386161,1723017065248,-151.0,0.00011186,2]
[334386162,1723017065263,-532.371899,0.00011186,2]
[334386163,1723017065272,-151.0,0.00011186,2]
[334386164,1723017065282,-283.279605,0.00011186,2]
[334386165,1723017065291,-151.0,0.00011186,2]
[334386166,1723017065301,-193.665473,0.00011186,2]
[334386167,1723017065310,-151.0,0.00011186,2]
[334386168,1723017065320,-193.665473,0.00011186,2]
[334386169,1723017065330,-151.0,0.00011186,2]
[334386170,1723017065340,-151.0,0.00011186,2]
[334386171,1723017065350,-151.0,0.00011186,2]
[334386172,1723017065359,-151.0,0.00011186,2]
[334386173,1723017065369,-151.0,0.00011186,2]
[334386174,1723017065379,-151.0,0.00011186,2]